bitfinex-derivatives/quotes_SOLF0:USTF0_20250625
["timestamp","ask_amount","ask_price","bid_price","bid_amount"]
[1750846142273,3.40998314,145.25,145.23,10.09999708]
[1750846142570,3.40998314,145.25,145.24,3.21816054]
[1750846143166,3.40998314,145.25,145.23,6.8818]
[1750846143866,3.40998314,145.25,145.24,6.8815]
[1750846144072,3.40998314,145.27,145.23,6.37635047]
[1750846144371,3.40998314,145.25,145.22,6.37635047]
[1750846144574,3.40998314,145.25,145.23,6.8818]
[1750846144961,3.40998314,145.25,145.22,6.37635047]
[1750846145162,3.40998314,145.23,145.21,6.37635047]
[1750846145570,3.40998314,145.25,145.22,6.8825]
[1750846145773,3.40998314,145.25,145.23,6.37635047]
[1750846146158,3.40998314,145.25,145.23,6.882]
[1750846146368,3.40998314,145.25,145.23,13.25835047]
[1750846146670,3.40998314,145.25,145.24,6.8815]
[1750846147070,3.40998314,145.25,145.23,6.37635047]
[1750846147668,3.40998314,145.25,145.23,13.25795047]
[1750846147868,3.40998314,145.25,145.23,6.37635047]
[1750846148261,3.40998314,145.25,145.24,13.25785047]
[1750846148862,3.40998314,145.25,145.24,6.8815]
[1750846149760,3.40998314,145.27,145.23,8.52695143]
[1750846149962,3.40998314,145.28,145.26,6.43633614]
[1750846150463,3.40998314,145.28,145.22,17.52142714]
[1750846150664,3.40998314,145.28,145.22,4.731]
[1750846150863,3.40998314,145.28,145.25,6.43606518]
[1750846151171,10.28968314,145.28,145.26,6.8803]
[1750846151371,10.28968314,145.28,145.26,13.31636518]
[1750846152171,3.40998314,145.3,145.26,6.43606518]
[1750846152365,3.40998314,145.3,145.27,6.43606518]
[1750846152566,9.1351,145.35,145.27,6.43606518]
[1750846152768,3.40998314,145.32,145.29,6.43606518]
[1750846153276,10.28678314,145.34,145.31,6.8779]
[1750846153569,3.40998314,145.34,145.3,6.43606518]
[1750846153779,3.40998314,145.34,145.32,6.8777]
[1750846153970,3.40998314,145.34,145.3,6.43606518]
[1750846154171,3.40998314,145.36,145.32,6.43606518]
[1750846154567,3.40998314,145.36,145.33,6.877]
[1750846155975,10.28508314,145.38,145.32,6.43606518]
[1750846156379,10.28508314,145.38,145.3,11.99140338]
[1750846157071,10.28508314,145.38,145.35,6.8762]
[1750846157671,6.8751,145.38,145.35,6.8762]
[1750846157872,3.40998314,145.39,145.3,11.99140338]
[1750846158068,3.40998314,145.39,145.32,3.40998314]
[1750846158276,3.40998314,145.39,145.36,6.8754]
[1750846158875,10.28448314,145.39,145.36,6.8754]
[1750846162577,3.40998314,145.37,145.29,13.08442024]
[1750846162779,3.40998314,145.34,145.29,4.503]
[1750846162981,3.40998314,145.34,145.31,6.8779]
[1750846163380,3.40998314,145.34,145.29,4.503]
[1750846163977,3.40998314,145.32,145.28,2.2771]
[1750846164282,3.40998314,145.3,145.28,2.2771]
[1750846164479,3.40998314,145.3,145.29,6.8792]
[1750846165581,3.40998314,145.3,145.28,9.1565]
[1750846165785,3.40998314,145.3,145.24,8.58142024]
[1750846165972,3.40998314,145.3,145.23,10.91762024]
[1750846166786,10.28878314,145.3,145.27,6.8798]
[1750846167280,3.40998314,145.28,145.25,6.8806]
[1750846167482,3.40998314,145.3,145.22,14.36340338]
[1750846167674,3.40998314,145.3,145.24,2.3017]
[1750846167874,2.4308,145.35,145.24,2.3017]
[1750846168171,3.40998314,145.32,145.24,5.71168314]
[1750846168376,10.28798314,145.32,145.29,6.8789]
[1750846170184,3.40998314,145.32,145.29,6.8789]
[1750846171285,3.40998314,145.32,145.3,6.8786]
[1750846172187,10.28778314,145.32,145.29,6.8789]
[1750846172390,3.40998314,145.3,145.29,6.8789]
[1750846174983,3.40998314,145.3,145.28,6.8794]
[1750846175988,3.40998314,145.3,145.27,6.8799]
[1750846176587,10.28868314,145.3,145.27,6.8799]
[1750846176782,3.40998314,145.28,145.25,6.881]
[1750846176987,3.40998314,145.28,145.24,2.3017]
[1750846177183,10.28968314,145.28,145.24,2.3017]
[1750846177689,3.40998314,145.26,145.24,2.3017]
[1750846177886,3.40998314,145.26,145.22,2.372]
[1750846178989,10.29088314,145.26,145.23,6.8818]
[1750846179491,10.29088314,145.26,145.22,2.372]
[1750846179690,10.29088314,145.26,145.23,6.8819]
[1750846180094,3.40998314,145.26,145.23,6.8819]
[1750846180488,3.40998314,145.26,145.22,2.372]
[1750846180689,3.40998314,145.28,145.22,2.372]
[1750846180886,2.4308,145.35,145.22,5.78198314]
[1750846181090,3.40998314,145.32,145.24,3.40998314]
[1750846181295,6.8784,145.31,145.28,6.8794]
[1750846182297,10.28798314,145.32,145.29,6.8788]
[1750846182497,3.40998314,145.32,145.26,6.39834207]
[1750846182699,3.40998314,145.32,145.3,6.8784]
[1750846183088,3.40998314,145.32,145.27,4.6254]
[1750846184595,3.40998314,145.32,145.29,6.8788]
[1750846185207,3.40998314,145.32,145.27,4.6254]
[1750846185401,10.28778314,145.32,145.27,4.6254]
[1750846186000,3.40998314,145.32,145.27,4.6254]
[1750846186801,3.40998314,145.34,145.27,8.03538314]
[1750846187207,10.28688314,145.34,145.31,6.878]
[1750846188003,6.8773,145.33,145.31,6.878]
[1750846188204,3.40998314,145.34,145.31,6.878]
[1750846188404,3.40998314,145.34,145.3,6.8784]
[1750846188600,6.8774,145.33,145.3,6.8784]
[1750846189105,3.40998314,145.32,145.28,2.326]
[1750846189300,3.40998314,145.34,145.28,2.326]
[1750846191099,6.8773,145.33,145.3,6.8783]
[1750846193001,3.40998314,145.34,145.31,6.8781]
[1750846193002,10.28698314,145.34,145.31,6.8781]
[1750846194913,6.8773,145.33,145.3,6.8785]
[1750846195210,3.40998314,145.34,145.28,2.326]
[1750846195402,3.40998314,145.32,145.29,6.879]
[1750846195610,3.40998314,145.3,145.23,8.58142024]
[1750846195906,3.40998314,145.25,145.23,15.46312024]
[1750846196106,3.40998314,145.25,145.22,2.2764]
[1750846196912,10.29128314,145.25,145.22,9.1586]
[1750846197211,3.40998314,145.25,145.22,9.1586]
[1750846197614,10.29108314,145.25,145.22,9.1586]
[1750846197816,3.40998314,145.27,145.22,2.2764]
[1750846198510,3.40998314,145.29,145.25,6.8807]
[1750846200110,6.8798,145.28,145.25,6.8807]
[1750846200519,3.40998314,145.27,145.22,10.85782024]
[1750846200922,3.40998314,145.27,145.25,6.8808]
[1750846204120,3.40998314,145.31,145.22,14.26780338]
[1750846204320,3.40998314,145.31,145.24,11.99140338]
[1750846204616,6.8789,145.3,145.27,6.8801]
[1750846205012,3.40998314,145.28,145.22,2.2764]
[1750846205207,3.40998314,145.24,145.22,2.2764]
[1750846205515,20.6267,145.37,145.22,2.2764]
[1750846205516,3.40998314,145.26,145.22,2.2764]
[1750846206219,6.8813,145.25,145.22,9.1586]
[1750846206416,3.40998314,145.26,145.22,9.1586]
[1750846206613,3.40998314,145.26,145.22,2.2764]
[1750846207217,10.29078314,145.26,145.23,6.8819]
[1750846207912,6.8808,145.26,145.23,6.8819]
[1750846208111,3.40998314,145.26,145.22,2.2764]
[1750846208313,3.40998314,145.28,145.22,10.85782024]
[1750846208616,10.28968314,145.28,145.22,8.58142024]
[1750846208818,10.28968314,145.28,145.23,11.01252024]
[1750846209234,10.28968314,145.28,145.25,6.8808]
[1750846211826,6.8801,145.27,145.25,6.8808]
[1750846212125,3.40998314,145.26,145.23,2.4311]
[1750846212824,3.40998314,145.26,145.24,6.8813]
[1750846213125,3.40998314,145.29,145.23,11.01252024]
[1750846213719,10.28938314,145.29,145.26,6.8804]
[1750846214225,3.40998314,145.29,145.27,6.8801]
[1750846215818,3.40998314,145.29,145.24,8.58142024]
[1750846216327,6.8797,145.28,145.25,6.8807]
[1750846216625,3.40998314,145.27,145.23,11.01252024]
[1750846216924,10.29028314,145.27,145.24,6.8812]
[1750846218223,3.40998314,145.28,145.23,11.01252024]
[1750846218918,2.2515,145.34,145.24,6.8812]
[1750846219122,3.40998314,145.28,145.23,11.01252024]
[1750846219421,10.28968314,145.28,145.25,6.8808]
[1750846220620,2.2515,145.34,145.23,11.01252024]
[1750846220827,3.40998314,145.31,145.24,8.58142024]
[1750846221123,3.40998314,145.31,145.25,8.58142024]
[1750846221822,6.8789,145.3,145.27,6.8799]
[1750846222028,6.8789,145.3,145.24,8.58142024]
[1750846222829,6.8789,145.3,145.27,6.8799]
[1750846224524,3.40998314,145.31,145.27,6.8799]
[1750846224717,3.40998314,145.29,145.27,6.8799]
[1750846224921,2.2515,145.34,145.27,6.8799]
[1750846225127,3.40998314,145.29,145.27,6.8799]
[1750846227120,3.40998314,145.29,145.24,8.58142024]
[1750846227121,3.40998314,145.29,145.28,6.8796]
[1750846227828,10.28848314,145.31,145.28,6.8796]
[1750846228623,10.28868314,145.3,145.27,6.8799]
[1750846229531,3.40998314,145.28,145.23,2.4311]
[1750846229727,3.40998314,145.26,145.23,2.4311]
[1750846229922,10.29058314,145.26,145.24,6.8813]
[1750846230128,10.29271742,145.26,145.23,2.4311]
[1750846230632,10.29271742,145.26,145.23,9.3129]
[1750846230932,3.41211742,145.28,145.25,6.8811]
[1750846231534,6.8801,145.27,145.25,6.8811]
[1750846231833,3.41211742,145.28,145.25,6.8811]
[1750846232234,10.29201742,145.28,145.25,6.8811]
[1750846237134,3.41211742,145.28,145.23,10.89962024]
[1750846237334,3.41211742,145.28,145.24,8.58142024]
[1750846237732,10.29181742,145.28,145.25,6.8808]
[1750846238235,10.29181742,145.28,145.24,8.58142024]
[1750846238433,3.41211742,145.28,145.26,6.8804]
[1750846238922,10.29171742,145.28,145.25,6.8808]
[1750846239337,3.41211742,145.28,145.25,6.8808]
[1750846239931,10.29191742,145.28,145.25,6.8808]
[1750846240235,3.41211742,145.28,145.23,10.89962024]
[1750846240431,3.41211742,145.26,145.23,10.89962024]
[1750846240627,3.41211742,145.26,145.23,8.58142024]
[1750846240941,10.29392535,145.25,145.23,8.58142024]
[1750846241238,3.41252535,145.25,145.22,8.58142024]
[1750846242232,10.29382535,145.25,145.22,15.46372024]
[1750846242539,3.41252535,145.25,145.22,8.58142024]
[1750846242739,6.8816,145.24,145.22,8.58142024]
[1750846243132,6.8819,145.24,145.21,8.58142024]
[1750846243333,3.41252535,145.23,145.21,8.58142024]
[1750846243732,10.29372535,145.25,145.21,8.58142024]
[1750846244240,3.41252535,145.25,145.21,8.58142024]
[1750846245141,6.8816,145.24,145.21,15.46422024]
[1750846245337,6.8816,145.24,145.21,6.8828]
[1750846245534,3.41252535,145.25,145.2,8.58142024]
[1750846246136,6.8818,145.24,145.2,15.46452024]
[1750846246846,3.41252535,145.23,145.21,6.8829]
[1750846247943,10.29462535,145.23,145.2,6.8833]
[1750846249240,10.29462535,145.23,145.21,6.42851475]
[1750846250338,3.41252535,145.23,145.21,6.42851475]
[1750846250535,3.41252535,145.23,145.2,6.42851475]
[1750846250735,3.41252535,145.21,145.2,6.42851475]
[1750846251935,3.41252535,145.24,145.2,6.42851475]
[1750846252140,3.41252535,145.27,145.22,6.42489662]
[1750846252645,3.41252535,145.27,145.24,6.8813]
[1750846254143,3.41252535,145.27,145.25,6.8809]
[1750846255241,3.41252535,145.27,145.26,6.8806]
[1750846257839,3.41252535,145.27,145.25,6.881]
[1750846258037,3.41252535,145.27,145.23,10.93192024]
[1750846258236,3.41252535,145.25,145.21,8.58142024]
[1750846258442,3.41252535,145.23,145.2,8.58142024]
[1750846259049,3.41252535,145.23,145.19,10.99812024]
[1750846260147,3.41252535,145.23,145.2,6.8833]
[1750846261258,10.29452535,145.23,145.21,6.42457905]
[1750846261951,3.41252535,145.23,145.21,6.42457905]
[1750846262656,6.8824,145.23,145.21,6.42457905]
[1750846262846,3.41252535,145.23,145.21,6.42457905]
[1750846263041,3.41252535,145.23,145.19,6.42457905]
[1750846263248,3.41252535,145.21,145.19,6.42457905]
[1750846263852,3.41252535,145.28,145.18,6.42457905]
[1750846264050,3.41252535,145.23,145.2,6.42457905]
[1750846264355,3.41252535,145.23,145.19,6.42457905]
[1750846264746,10.29482535,145.23,145.19,13.30847905]
[1750846265150,10.29482535,145.23,145.19,6.42457905]
[1750846265151,3.41252535,145.23,145.19,6.42457905]
[1750846265353,3.41252535,145.23,145.2,6.8834]
[1750846266154,3.41252535,145.23,145.21,6.8829]
[1750846266558,3.41252535,145.23,145.2,6.42457905]
[1750846266947,3.41252535,145.23,145.2,6.8833]
[1750846267847,3.41252535,145.23,145.21,6.8829]
[1750846268851,3.41252535,145.23,145.2,13.30777905]
[1750846269056,3.41252535,145.21,145.19,6.42457905]
[1750846269743,3.41252535,145.21,145.19,13.30827905]
[1750846269943,3.41252535,145.21,145.19,6.42457905]
[1750846270355,3.41252535,145.21,145.19,13.30817905]
[1750846270551,3.41252535,145.21,145.19,6.42457905]
[1750846270754,3.41252535,145.21,145.2,6.8834]
[1750846270948,3.41252535,145.21,145.19,6.42457905]
[1750846271558,6.8819,145.24,145.2,6.8834]
[1750846271856,10.29462535,145.23,145.2,6.42457905]
[1750846272048,3.41252535,145.23,145.2,6.42457905]
[1750846272250,3.41252535,145.23,145.2,13.30767905]
[1750846272652,3.41252535,145.23,145.2,6.8831]
[1750846273155,3.41252535,145.23,145.2,13.30767905]
[1750846274360,3.41252535,145.23,145.21,6.8829]
[1750846274558,20.66,145.32,145.21,6.42457905]
[1750846274762,3.41252535,145.26,145.22,8.81947905]
[1750846274952,3.41252535,145.26,145.23,6.8817]
[1750846275151,3.41252535,145.26,145.23,13.30627905]
[1750846275455,10.29230916,145.27,145.23,6.42457905]
[1750846275757,10.29230916,145.27,145.24,6.42457905]
[1750846276258,10.29230916,145.27,145.24,13.30597905]
[1750846276463,10.29230916,145.27,145.24,6.8814]
[1750846277159,6.8806,145.26,145.23,6.8818]
[1750846277657,3.41190916,145.27,145.23,6.8818]
[1750846278850,10.29230916,145.27,145.23,6.8818]
[1750846279764,10.2926606,145.26,145.23,6.8818]
[1750846280266,6.886,145.32,145.22,2.3949]
[1750846280267,3.4119606,145.24,145.22,2.3949]
[1750846280463,3.4119606,145.24,145.2,2.2667]
[1750846280665,3.4119606,145.22,145.19,8.58142024]
[1750846280863,10.2946606,145.22,145.18,8.58142024]
[1750846281255,10.2946606,145.22,145.18,6.8842]
[1750846281658,10.2946606,145.22,145.17,10.81592024]
[1750846281853,10.2946606,145.22,145.18,6.8841]
[1750846282157,10.2946606,145.22,145.17,10.81592024]
[1750846283162,6.883,145.21,145.18,6.8842]
[1750846284158,3.4119606,145.22,145.18,6.8842]
[1750846284864,3.4119606,145.22,145.17,17.70052024]
[1750846285255,3.4119606,145.2,145.17,17.70052024]
[1750846285458,3.4119606,145.2,145.17,10.81592024]
[1750846285659,3.4119606,145.2,145.19,6.43081049]
[1750846286368,3.4119606,145.2,145.18,6.43081049]
[1750846286555,3.4119606,145.2,145.17,6.43081049]
[1750846286759,3.4119606,145.18,145.16,6.43081049]
[1750846286968,3.4119606,145.18,145.15,6.43081049]
[1750846287361,6.8853,145.16,145.14,6.43081049]
[1750846287561,3.4119606,145.18,145.14,6.43081049]
[1750846287757,3.4119606,145.16,145.14,6.43081049]
[1750846288163,3.4119606,145.16,145.13,13.31731049]
[1750846289270,3.4119606,145.2,145.14,8.58142024]
[1750846289463,3.4119606,145.2,145.15,6.42256649]
[1750846289662,6.8842,145.19,145.15,13.30816649]
[1750846289863,3.4119606,145.18,145.15,6.42256649]
[1750846290065,3.4119606,145.18,145.13,6.42256649]
[1750846290266,3.4119606,145.16,145.13,6.42256649]
[1750846290672,10.2973606,145.16,145.13,6.42256649]
[1750846291474,3.4119606,145.16,145.13,6.42256649]
[1750846292375,3.4119606,145.16,145.13,6.8865]
[1750846293879,3.4119606,145.16,145.12,8.79596649]
[1750846294376,10.2974606,145.16,145.12,8.79596649]
[1750846294577,3.4119606,145.14,145.11,2.2502]
[1750846294771,3.4119606,145.14,145.09,6.42256649]
[1750846294971,3.4119606,145.12,145.08,6.42256649]
[1750846295471,3.4119606,145.12,145.07,8.64856649]
[1750846295674,10.2993606,145.12,145.07,8.64856649]
[1750846295871,3.4119606,145.16,145.09,6.42256649]
[1750846296079,3.4119606,145.16,145.1,8.79136649]
[1750846296274,10.2975606,145.16,145.12,6.887]
[1750846297882,3.4119606,145.16,145.11,2.2805]
[1750846298078,3.4119606,145.16,145.11,8.70306649]
[1750846298476,10.2975606,145.16,145.12,6.887]
[1750846298777,10.2975606,145.16,145.11,2.2805]
[1750846299181,10.2975606,145.16,145.12,6.887]
[1750846299385,10.2975606,145.16,145.11,2.2805]
[1750846299988,10.2975606,145.16,145.12,6.8868]
[1750846300188,10.2975606,145.16,145.11,2.2805]
[1750846301089,10.2975606,145.16,145.12,6.887]
[1750846301388,10.2975606,145.16,145.11,2.2805]
[1750846301889,10.2975606,145.16,145.12,6.887]
[1750846302382,3.4119606,145.16,145.11,8.70306649]
[1750846302582,3.4119606,145.16,145.12,6.8874]
[1750846302887,3.4119606,145.16,145.11,8.70306649]
[1750846303090,3.4119606,145.16,145.13,6.8871]
[1750846303288,3.4119606,145.16,145.11,2.2805]
[1750846303487,10.2977606,145.16,145.12,6.8874]
[1750846303988,10.2977606,145.16,145.11,8.70306649]
[1750846303989,10.2987606,145.14,145.11,2.2805]
[1750846304190,3.4119606,145.14,145.11,2.2805]
[1750846304391,6.8875,145.13,145.11,2.2805]
[1750846304889,6.8875,145.13,145.07,2.226]
[1750846304890,3.4119606,145.14,145.07,8.64856649]
[1750846305086,3.4119606,145.14,145.07,10.85536649]
[1750846305682,3.4119606,145.12,145.07,10.85536649]
[1750846305883,10.2999606,145.12,145.08,6.8894]
[1750846306291,3.4119606,145.12,145.08,6.8894]
[1750846307085,10.2997606,145.12,145.08,6.8894]
[1750846309492,3.4119606,145.12,145.09,6.8891]
[1750846310192,3.4119606,145.16,145.08,6.42256649]
[1750846310388,3.4119606,145.14,145.08,6.42256649]
[1750846310691,10.2988606,145.14,145.1,6.8884]
[1750846312794,6.8869,145.14,145.11,6.8881]
[1750846312996,3.4119606,145.14,145.11,6.8881]
[1750846313188,3.4119606,145.14,145.07,10.85536649]
[1750846313498,10.2989606,145.14,145.1,6.8886]
[1750846313998,3.4119606,145.16,145.08,9.83452709]
[1750846314383,3.4119606,145.16,145.13,6.887]
[1750846315100,3.4119606,145.16,145.14,6.8866]
[1750846315400,6.8857,145.17,145.14,6.8866]
[1750846315897,3.4119606,145.18,145.12,4.521]
[1750846316498,6.8857,145.17,145.14,6.8867]
[1750846317392,6.8857,145.17,145.13,6.887]
[1750846317600,3.4119606,145.18,145.12,4.521]
[1750846318399,10.2972606,145.18,145.14,6.8865]
[1750846320799,6.8856,145.17,145.14,6.8865]
[1750846321000,3.4119606,145.16,145.13,6.8872]
[1750846321403,10.2979606,145.16,145.12,4.521]
[1750846322002,10.2979606,145.16,145.12,11.4085]
[1750846322203,10.2979606,145.16,145.12,17.83106649]
[1750846322404,10.2979606,145.16,145.12,11.4085]
[1750846322595,6.886,145.16,145.12,11.4085]
[1750846322794,10.2979606,145.16,145.12,11.4085]
[1750846323805,6.8865,145.15,145.12,11.4085]
[1750846324196,6.8865,145.15,145.12,4.521]
[1750846324393,3.4119606,145.2,145.11,6.42256649]
[1750846324394,6.8873,145.13,145.11,6.42256649]
[1750846324598,3.4119606,145.14,145.09,6.42256649]
[1750846324811,6.8876,145.13,145.09,13.31146649]
[1750846325303,6.8876,145.13,145.1,6.42256649]
[1750846325896,10.2989606,145.14,145.1,6.42256649]
[1750846326093,3.4119606,145.14,145.1,6.42256649]
[1750846326500,10.2979606,145.2,145.1,6.42256649]
[1750846326703,6.886,145.2,145.11,6.42256649]
[1750846327000,10.2990606,145.14,145.11,6.42256649]
[1750846327906,10.2990606,145.14,145.11,13.31056649]
[1750846328294,3.4119606,145.14,145.11,13.31056649]
[1750846329005,10.2988606,145.14,145.11,13.31056649]
[1750846329199,10.2988606,145.14,145.12,6.42256649]
[1750846331505,6.8869,145.14,145.12,6.42256649]
[1750846332007,10.2984606,145.15,145.12,13.31026649]
[1750846332813,10.2984606,145.15,145.13,6.42256649]
[1750846333202,35.22,145.16,145.13,6.42256649]
[1750846333402,35.22,145.16,145.14,6.42256649]
[1750846333599,35.22,145.16,145.14,13.30906649]
[1750846333915,10.2974606,145.17,145.14,13.30906649]
[1750846333916,38.6319606,145.19,145.14,8.58142024]
[1750846334211,6.8851,145.18,145.16,6.43577732]
[1750846334410,38.6319606,145.19,145.16,6.43577732]
[1750846334610,3.4119606,145.17,145.16,6.43577732]
[1750846334808,10.2976606,145.17,145.15,6.43577732]
[1750846337505,3.4119606,145.18,145.15,6.43577732]
[1750846337709,3.4119606,145.18,145.16,6.43577732]
[1750846338210,3.4119606,145.18,145.16,13.32137732]
[1750846338412,3.4119606,145.18,145.16,6.43577732]
[1750846338913,35.22,145.19,145.17,6.43577732]
[1750846339520,633.6719606,145.22,145.17,6.43577732]
[1750846339715,35.22,145.22,145.18,6.43577732]
[1750846340012,35.22,145.22,145.16,43.80142024]
[1750846340013,42.1032,145.22,145.19,13.31987732]
[1750846340909,6.8835,145.21,145.19,13.31987732]
[1750846341421,42.1033,145.22,145.19,6.8841]
[1750846341620,42.1033,145.22,145.19,6.43577732]
[1750846342219,42.1033,145.22,145.19,6.8842]
[1750846343221,6.8835,145.21,145.19,6.8842]
[1750846344415,35.22,145.22,145.2,6.8839]
[1750846344724,35.22,145.22,145.18,6.43577732]
[1750846345025,45.5152606,145.22,145.19,6.884]
[1750846345223,45.5152606,145.22,145.18,6.43577732]
[1750846345531,45.5152606,145.22,145.19,6.884]
[1750846345817,3.4119606,145.2,145.17,6.41723217]
[1750846346020,3.4119606,145.18,145.13,11.7235]
[1750846346324,10.2980606,145.16,145.13,9.2896]
[1750846346517,3.4119606,145.16,145.14,6.8868]
[1750846347717,10.2978606,145.16,145.14,6.8868]
[1750846347919,3.4119606,145.16,145.14,6.8868]
[1750846349326,10.2978606,145.16,145.14,6.8868]
[1750846349531,10.2978606,145.16,145.13,6.8871]
[1750846350431,10.2978606,145.16,145.14,6.8867]
[1750846350626,3.4119606,145.16,145.14,6.8867]
[1750846351230,3.4119606,145.16,145.15,6.8863]
[1750846351534,3.4119606,145.16,145.12,8.58142024]
[1750846351735,3.4119606,145.16,145.14,6.8866]
[1750846353036,10.2979606,145.16,145.13,6.8871]
[1750846353733,10.2979606,145.16,145.14,6.8868]
[1750846355737,10.2975606,145.17,145.12,8.58142024]
[1750846356324,10.2975606,145.17,145.15,6.8863]
[1750846357136,41.9251,145.18,145.16,6.8858]
[1750846357330,45.3370606,145.18,145.16,6.8858]
[1750846357533,10.2970606,145.18,145.16,6.8858]
[1750846358735,3.4119606,145.18,145.17,6.8854]
[1750846359034,3.4119606,145.2,145.17,6.8854]
[1750846359229,3.4119606,145.2,145.19,6.8844]
[1750846359430,3.4119606,145.2,145.16,8.58142024]
[1750846359928,3.4119606,145.2,145.16,11.00842024]
[1750846360524,35.04,145.21,145.16,11.00842024]
[1750846360939,10.2951606,145.22,145.16,11.00842024]
[1750846361143,10.2951606,145.22,145.2,6.8839]
[1750846364531,3.4119606,145.22,145.2,6.8839]
[1750846364932,3.4119606,145.21,145.2,6.8839]
[1750846365734,3.4119606,145.21,145.19,6.8842]
[1750846365934,3.4119606,145.21,145.16,11.00842024]
[1750846366234,3.4119606,145.19,145.16,2.427]
[1750846366432,3.4119606,145.19,145.18,6.8849]
[1750846367440,3.4119606,145.19,145.17,6.8851]
[1750846369033,3.4119606,145.19,145.14,8.58142024]
[1750846369634,6.8853,145.18,145.15,6.8861]
[1750846370143,3.4119606,145.18,145.16,6.8857]
[1750846371643,3.4119606,145.18,145.17,6.8854]
[1750846373744,6.8846,145.19,145.17,6.8854]
[1750846373946,10.2965606,145.19,145.17,6.8854]
[1750846375937,3.4119606,145.19,145.18,6.8849]
[1750846378847,3.4119606,145.19,145.18,10.11031293]
[1750846382354,3.4119606,145.19,145.18,10.11031293]
[1750846385953,3.4119606,145.19,145.18,6.8849]
[1750846386253,3.4119606,145.19,145.18,10.11114804]
[1750846388959,3.4119606,145.19,145.18,10.11130509]
[1750846390958,3.4119606,145.19,145.18,6.8849]
[1750846391353,3.4119606,145.23,145.18,8.58142024]
[1750846391555,3.4119606,145.25,145.19,10.81102024]
[1750846391757,6.8824,145.24,145.21,6.8833]
[1750846392057,3.4119606,145.25,145.19,10.81102024]
[1750846392244,10.2937606,145.25,145.23,6.8825]
[1750846392845,3.4119606,145.27,145.24,6.882]
[1750846393055,3.4119606,145.27,145.22,8.58142024]
[1750846393859,10.2929606,145.27,145.21,43.62142024]
[1750846394050,35.04,145.29,145.21,43.62142024]
[1750846394359,3.4119606,145.25,145.22,6.8828]
[1750846394564,3.4119606,145.25,145.2,8.58142024]
[1750846394862,3.4119606,145.25,145.21,6.8833]
[1750846395062,10.2937606,145.25,145.21,6.8833]
[1750846395354,3.4119606,145.25,145.21,6.8833]
[1750846395558,3.4119606,145.25,145.2,6.8838]
[1750846395747,6.8823,145.24,145.19,45.85102024]
[1750846396056,35.04,145.29,145.21,8.58142024]
[1750846396057,3.4119606,145.27,145.21,8.58142024]
[1750846396260,3.4119606,145.28,145.22,8.58142024]
[1750846396558,10.2919606,145.29,145.26,6.8808]
[1750846397654,10.2919606,145.29,145.24,10.82502024]
[1750846397655,3.4119606,145.29,145.27,6.8806]
[1750846398159,3.4119606,145.29,145.26,6.8809]
[1750846398362,3.4119606,145.29,145.24,10.82502024]
[1750846398859,3.4119606,145.29,145.27,6.8804]
[1750846399064,6.8794,145.3,145.27,6.8804]
[1750846399361,3.4119606,145.3,145.28,6.8799]
[1750846400956,10.2912606,145.3,145.27,6.8804]
[1750846401255,3.4119606,145.3,145.24,2.2436]
[1750846401660,10.2911606,145.3,145.27,6.8802]
[1750846402159,10.2911606,145.3,145.24,2.2436]
[1750846403265,10.2911606,145.3,145.27,6.8802]
[1750846403964,10.2911606,145.3,145.28,6.8801]
[1750846405054,3.4119606,145.3,145.29,6.8797]
[1750846405254,6.879,145.31,145.29,6.8797]
[1750846406058,6.8794,145.3,145.28,6.88]
[1750846406259,38.4519606,145.32,145.28,6.88]
[1750846406659,6.8791,145.31,145.28,6.88]
[1750846408466,45.3304606,145.32,145.28,6.88]
[1750846408676,45.3304606,145.32,145.29,6.8796]
[1750846408858,45.3304606,145.32,145.24,5.6555606]
[1750846409058,45.3304606,145.32,145.28,6.8799]
[1750846409559,35.04,145.32,145.26,3.4119606]
[1750846409861,3.4119606,145.34,145.27,34.76]
[1750846410259,3.4119606,145.34,145.28,4.7728]
[1750846410769,3.4119606,145.34,145.29,2.4119]
[1750846410966,3.4119606,145.34,145.32,6.8782]
[1750846411357,34.76,145.35,145.32,6.8782]
[1750846411562,41.6371,145.35,145.32,6.8782]
[1750846411761,34.76,145.35,145.32,6.8782]
[1750846411972,41.637,145.35,145.32,6.8782]
[1750846412169,34.76,145.35,145.29,2.4119]
[1750846412360,3.4119606,145.32,145.29,2.4119]
[1750846413164,10.2902606,145.32,145.29,2.4119]
[1750846413361,3.4119606,145.32,145.29,2.4119]
[1750846414266,3.4119606,145.32,145.28,6.8799]